fUSD/lending_fUSD_20240102
["ID","MTS","AMOUNT","RATE_DAILY","PERIOD"]
[309802211,1704153611053,1490.6423875,0.0002301,2]
[309802212,1704153613073,25125.68128321,0.0002301,2]
[309802213,1704153625064,3751.82315391,0.00022869,2]
[309802214,1704153648798,1937.45976559,0.00022174,2]
[309802215,1704153686012,359.67963764,0.00018478,2]
[309802216,1704153703996,359.67963764,0.00018478,2]
[309802217,1704153716699,375.47709838,0.0002301,2]
[309802218,1704153720008,359.67963764,0.00018479,2]
[309802219,1704153738151,157.63543988,0.00022912,2]
[309802220,1704153739998,359.67963764,0.00018479,2]
[309802221,1704153742066,1490.6423875,0.0002301,2]
[309802222,1704153760136,480.34997238,0.00018479,2]
[309802223,1704153829514,173.02,0.00022671,2]
[309802228,1704153985575,843.95964549,0.00022671,2]
[309802229,1704153987013,1594.43306986,0.00018137,2]
[309802230,1704153990388,155.0,0.00022671,2]
[309802231,1704153991027,359.67963764,0.00018479,2]
[309802234,1704153994881,15655.5159615,0.00022671,2]
[309802235,1704153996421,155.0,0.00022671,2]
[309802236,1704154002370,1018.5291323,0.00022671,2]
[309802237,1704154003555,843.95964549,0.00022671,2]
[309802238,1704154004706,530.91158642,0.00022671,2]
[309802239,1704154006364,155.0,0.00022671,2]
[309802240,1704154009027,1594.43306986,0.00018137,2]
[309802241,1704154010324,155.0,0.00022671,2]
[309802242,1704154011055,359.67963764,0.00018479,2]
[309802244,1704154014877,15655.5159615,0.00022671,2]
[309802245,1704154016483,155.0,0.00022671,2]
[309802246,1704154016519,155.0,0.0002,2]
[309802247,1704154019563,843.95964549,0.00022671,2]
[309802248,1704154019653,155.0,0.000228,2]
[309802249,1704154026348,155.0,0.00022671,2]
[309802250,1704154030996,1594.43306986,0.00018137,2]
[309802251,1704154031025,359.67963764,0.00018477,2]
[309802252,1704154032887,15655.5159615,0.00022671,2]
[309802253,1704154033643,155.0,0.000228,2]
[309802254,1704154038389,155.0,0.00022671,2]
[309802255,1704154039557,843.95964549,0.00022671,2]
[309802256,1704154042317,302.48191991,0.00022671,2]
[309802257,1704154048438,155.0,0.00022671,2]
[309802258,1704154049027,359.67963764,0.00018477,2]
[309802259,1704154050872,15655.5159615,0.00022671,2]
[309802260,1704154051652,155.0,0.000228,2]
[309802261,1704154053001,1594.43306986,0.00018137,2]
[309802262,1704154054399,155.0,0.00022671,2]
[309802263,1704154059595,843.95964549,0.00022671,2]
[309802264,1704154066888,4885.1332428,0.00022671,2]
[309802265,1704154066910,10770.3827187,0.00022671,2]
[309802266,1704154067033,359.67963764,0.00018477,2]
[309802267,1704154068999,1594.43306986,0.00018137,2]
[309802268,1704154070378,155.0,0.00022671,2]
[309802269,1704154071660,155.0,0.000228,2]
[309802270,1704154072421,155.0,0.00022671,2]
[309802272,1704154083566,843.95964549,0.00022671,2]
[309802273,1704154085035,359.67963764,0.00018477,2]
[309802274,1704154086882,15655.5159615,0.00022671,2]
[309802275,1704154089005,1594.43306986,0.00018137,2]
[309802276,1704154090380,155.0,0.00022671,2]
[309802278,1704154091803,155.0,0.000228,2]
[309802279,1704154094439,155.0,0.00022671,2]
[309802281,1704154103062,359.67963764,0.00018477,2]
[309802282,1704154103561,843.95964549,0.00022671,2]
[309802283,1704154105013,1594.43306986,0.00018137,2]
[309802284,1704154108876,15655.5159615,0.00022671,2]
[309802285,1704154109673,177.15551537,0.000228,2]
[309802286,1704154110386,155.0,0.00022671,2]
[309802287,1704154116388,270.66964868,0.00022671,2]
[309802288,1704154119569,843.95964549,0.00022671,2]
[309802289,1704154121048,359.67963764,0.00018477,2]
[309802290,1704154123011,1594.43306986,0.00018137,2]
[309802291,1704154126387,250.9475796,0.00022671,2]
[309802292,1704154127153,15655.5159615,0.00022671,2]
[309802293,1704154128353,274.14314487,0.00022671,2]
[309802294,1704154134184,400.20941314,0.00021991,2]
[309802295,1704154137048,359.67963764,0.00018477,2]
[309802296,1704154139566,843.95964549,0.00022671,2]
[309802297,1704154141031,1594.43306986,0.00018137,2]
[309802298,1704154142882,15655.5159615,0.00022671,2]
[309802299,1704154155582,843.95964549,0.00022671,2]
[309802300,1704154157093,330.21320015,0.00018477,2]
[309802301,1704154160894,9828.85316854,0.00022671,2]
[309802302,1704154160919,5826.66279296,0.00022671,2]
[309802303,1704154165013,1594.43306986,0.00018137,2]
[309802304,1704154173579,843.95964549,0.00022671,2]
[309802305,1704154179054,359.67963764,0.00018477,2]
[309802306,1704154183014,1594.43306986,0.00018137,2]
[309802307,1704154184888,15655.5159615,0.00022671,2]
[309802309,1704154195048,214.62734942,0.00018477,2]
[309802310,1704154195586,843.95964549,0.00022671,2]
[309802311,1704154201012,1594.43306986,0.00018137,2]
[309802312,1704154206891,15655.5159615,0.00022671,2]
[309802314,1704154215679,843.95964549,0.0002,2]
[309802315,1704154223049,1594.43306986,0.0001451,2]
[309802316,1704154230896,15655.5159615,0.00018137,2]
[309802323,1704154231589,843.95964549,0.0002,2]
[309802358,1704154234593,-375.47709838,0.00023097,2]
[309802360,1704154234602,-274.93687886,0.00023098,2]
[309802362,1704154234614,-492.21325743,0.00023098,2]
[309802363,1704154234627,-3850.93687039,0.00023098,2]
[309802365,1704154234638,-33638.16110641,0.00023098,2]
[309802366,1704154234647,-801.41700936,0.00023099,2]
[309802367,1704154234657,-1528.0728375,0.00023099,2]
[309802368,1704154234666,-282.65853071,0.00023099,2]
[309802369,1704154234675,-187.45258331,0.00023099,2]
[309802370,1704154234684,-379.75590188,0.000231,2]
[309802371,1704154234694,-1015.06181848,0.000231,2]
[309802372,1704154234703,-155.0,0.00023101,2]
[309802373,1704154234712,-4213.35946841,0.00023102,2]
[309802374,1704154234722,-380.50241851,0.00023102,2]
[309802375,1704154234732,-4000.0,0.00023102,2]
[309802376,1704154234741,-6215.44584673,0.00023102,2]
[309802377,1704154234751,-10682.48044518,0.00023103,2]
[309802378,1704154234760,-499.99,0.00023103,2]
[309802379,1704154234770,-1240.19,0.00023103,2]
[309802380,1704154234779,-759.42,0.00023103,2]
[309802381,1704154234788,-1009.60586539,0.00023103,2]
[309802382,1704154234798,-245.75950104,0.00023104,2]
[309802383,1704154234807,-5089.76710798,0.00023109,2]
[309802384,1704154234816,-196.21358155,0.0002311,2]
[309802385,1704154234826,-498.76467183,0.00023111,2]
[309802386,1704154234835,-318.87,0.00023111,2]
[309802387,1704154234845,-937.43506641,0.00023112,2]
[309802388,1704154234854,-626.83867298,0.00023112,2]
[309802389,1704154234864,-206.44208894,0.00023112,2]
[309802390,1704154234873,-1057.98752379,0.00023112,2]
[309802391,1704154234882,-278.31410173,0.00023112,2]
[309802392,1704154234893,-220.26666446,0.00023112,2]
[309802393,1704154234902,-155.0,0.00023112,2]
[309802394,1704154234911,-162.18572574,0.00023112,2]
[309802395,1704154234920,-1039.76978638,0.00023112,2]
[309802396,1704154234930,-155.0,0.00023112,2]
[309802397,1704154234939,-155.00398649,0.00023112,2]
[309802399,1704154234948,-337.3862437,0.00023112,2]
[309802401,1704154234961,-4134.1778502,0.00023112,2]
[309802403,1704154234971,-1847.42621652,0.00023112,2]
[309802405,1704154234980,-403.22829154,0.00023113,2]
[309802407,1704154234990,-1252.56346846,0.00023113,2]
[309802409,1704154234999,-155.0,0.00023113,2]
[309802411,1704154235009,-202.52398103,0.00023124,2]
[309802414,1704154235018,-330.0,0.0002313,2]
[309802417,1704154235028,-269.1626795,0.00024,2]
[309802421,1704154235038,-157.63543977,0.00024211,2]
[309802423,1704154235047,-4195.66809957,0.00025,3]
[309802427,1704154235058,-962.51555815,0.00025,2]
[309802430,1704154235068,-25106.40916617,0.0002509,2]
[309802433,1704154235078,-157.63543977,0.0002551,2]
[309802436,1704154235087,-251.85007283,0.00025864,2]
[309802439,1704154235097,-596.94,0.00026621,2]
[309802442,1704154235106,-157.63543977,0.00026809,2]
[309802445,1704154235116,-250.0,0.00027,3]
[309802448,1704154235126,-168.88177902,0.000275,2]
[309802451,1704154235135,-967.40193507,0.00027875,6]
[309802455,1704154235149,-2466.96629898,0.00027875,2]
[309802458,1704154235159,-157.63543977,0.00028108,2]
[309802461,1704154235168,-250.0,0.00028133,2]
[309802464,1704154235178,-164.12,0.00028144,2]
[309802466,1704154235188,-457.07,0.00028164,2]
[309802468,1704154235197,-8578.82036608,0.00028284,2]
[309802472,1704154235231,-1748.85246,0.00028284,2]
[309802475,1704154235248,-8832.0,0.00028284,2]
[309802477,1704154235260,-293.30614218,0.00028284,2]
[309802480,1704154235271,-427.83516226,0.00028284,2]
[309802482,1704154235284,-864.29464045,0.00028284,2]
[309802507,1704154235512,-3025.38731659,0.00028284,2]
[309802509,1704154235524,-129.50391244,0.00028284,2]
[309802511,1704154235534,-173.02,0.00028338,2]
[309802513,1704154235543,-1631.71728935,0.00028344,2]
[309802515,1704154235559,-399.66399,0.00028344,2]
[309802517,1704154235571,-1133.87120685,0.00028344,2]
[309802521,1704154235596,-285.3475138,0.00028344,2]
[309802522,1704154235606,-303.74,0.00028344,2]
[309802523,1704154235616,-2000.0,0.00028361,2]
[309802524,1704154235626,-200.0,0.00028379,2]
[309802525,1704154235635,-250.0,0.00028392,2]
[309802526,1704154235645,-224.94,0.0002843,2]
[309802527,1704154235656,-180.87,0.00028443,2]
[309802528,1704154235666,-2705.0,0.00028451,2]
[309802529,1704154235678,-186.8,0.00028564,2]
[309802530,1704154235688,-1762.02403637,0.00028737,2]
[309802531,1704154235697,-596.94,0.00028885,2]
[309802532,1704154235707,-300.0,0.00029,3]
[309802533,1704154235717,-2129.994798,0.00029066,2]
[309802534,1704154235727,-155.0,0.00029066,2]
[309802535,1704154235737,-270.17434479,0.00029066,2]
[309802536,1704154235746,-527.27825206,0.00029066,2]
[309802537,1704154235757,-155.0,0.00029066,2]
[309802538,1704154235766,-155.0,0.00029066,2]
[309802539,1704154235776,-2605.2545687,0.00029066,2]
[309802540,1704154235785,-241.61161094,0.00029067,2]
[309802541,1704154235795,-513.70005074,0.00029067,2]
[309802542,1704154235804,-194.49248251,0.00029067,2]
[309802543,1704154235813,-155.0,0.00029067,2]
[309802544,1704154235823,-288.15054455,0.00029067,2]
[309802545,1704154235832,-619.96222449,0.00029067,2]
[309802546,1704154235842,-223.71588907,0.00029067,2]
[309802547,1704154235851,-259.19969068,0.00029067,2]
[309802548,1704154235861,-155.0,0.00029068,2]
[309802549,1704154235871,-252.38416995,0.00029068,2]
[309802550,1704154235880,-30.66741722,0.00029068,2]
[309802551,1704154235894,-124.33258278,0.00029068,2]
[309802552,1704154235904,-211.54694715,0.00029068,2]
[309802553,1704154235914,-839.31551709,0.00029068,2]
[309802569,1704154237911,-428.05932967,0.00023096,2]
[309802570,1704154237921,-394.2549641,0.00029068,2]
[309802571,1704154237930,-159.19243644,0.00029068,2]
[309802572,1704154237940,-203.98984461,0.00029068,2]
[309802573,1704154237949,-99.72578307,0.00029199,2]
[309802574,1704154237961,-200.74421693,0.00029199,2]
[309802575,1704154237970,-303.74,0.00029323,2]
[309802576,1704154237989,-300.47,0.00029352,2]
[309802577,1704154238002,-146.30710579,0.00029407,2]
[309802578,1704154238017,-11.32833398,0.00029407,2]
[309802579,1704154238027,-300.47,0.00029506,2]
[309802580,1704154238037,-989.26,0.00029534,2]
[309802581,1704154238047,-300.47,0.0002966,2]
[309802582,1704154238057,-171.22,0.00029761,2]
[309802583,1704154238068,-165.22,0.00029792,2]
[309802584,1704154238078,-300.47,0.00029813,2]
[309802585,1704154238088,-300.47,0.00029967,2]
[309802586,1704154238098,-1000.0,0.0003,2]
[309802587,1704154238108,-300.47,0.00030121,2]
[309802588,1704154238118,-300.47,0.00030274,2]
[309802589,1704154238128,-249.02387903,0.00030301,2]
[309802590,1704154238233,-54.71612097,0.00030301,2]
[309802591,1704154238244,-300.47,0.00030428,2]
[309802593,1704154238254,-300.47,0.00030582,2]
[309802595,1704154238265,-93.39063398,0.000307,2]
[309802602,1704154238317,-1774.60936602,0.000307,2]
[309802604,1704154238327,-157.63543977,0.00030706,2]
[309802606,1704154238336,-300.47,0.00030735,2]
[309802608,1704154238346,-153.84,0.0003085,2]
[309802610,1704154238356,-300.47,0.00030889,2]
[309802612,1704154238366,-231.75601975,0.00031,2]
[309802614,1704154238378,-15370.24398025,0.00031,2]
[309802616,1704154238388,-350.0,0.00031,3]
[309802618,1704154238399,-300.47,0.00031043,2]
[309802620,1704154238408,-162.93,0.00031097,2]
[309802622,1704154238419,-596.94,0.00031149,2]
[309802624,1704154238428,-300.47,0.00031197,2]
[309802626,1704154238438,-303.74,0.0003128,2]
[309802628,1704154238447,-300.47,0.0003135,2]
[309802630,1704154238457,-189.11,0.00031399,120]
[309802632,1704154238466,-300.47,0.00031504,2]
[309802634,1704154238476,-300.47,0.00031658,2]
[309802636,1704154238485,-153.84,0.00031785,2]
[309802638,1704154238495,-300.47,0.00031811,2]
[309802640,1704154238504,-300.47,0.00031965,2]
[309802642,1704154238514,-180.87,0.00031999,2]
[309802644,1704154238523,-15325.47464439,0.00032,4]
[309802646,1704154238532,-157.63543977,0.00032005,2]
[309802648,1704154238541,-300.47,0.00032119,2]
[309802650,1704154238551,-303.74,0.00032258,2]
[309802652,1704154238560,-151.0,0.0003226,120]
[309802654,1704154238570,-819.13,0.00032456,2]
[309802656,1704154238579,-161.15,0.00032643,2]
[309802658,1704154238588,-153.84,0.0003272,2]
[309802660,1704154238601,-163.14,0.00032877,15]
[309802662,1704154238611,-2456.97553968,0.000329,2]
[309802664,1704154238621,-517.30882719,0.000329,2]
[309802667,1704154238630,-151.0,0.00032918,30]
[309802668,1704154238641,-400.0,0.00033,3]
[309802669,1704154238651,-162.93,0.00033047,2]
[309802670,1704154238660,-303.74,0.00033237,2]
[309802671,1704154238670,-157.63543977,0.00033304,2]
[309802672,1704154238680,-596.94,0.00033412,2]
[309802673,1704154238689,-151.0,0.0003359,7]
[309802674,1704154238699,-153.84,0.00033654,2]
[309802675,1704154238708,-165.22,0.0003386,2]
[309802676,1704154238718,-1000.0,0.00034,4]
[309802678,1704154238728,-173.02,0.00034006,2]
[309802680,1704154238738,-303.74,0.00034215,2]
[309802682,1704154238748,-151.0,0.00034276,4]
[309802684,1704154238759,-1943.0341,0.000343,2]
[309802686,1704154238768,-153.84,0.00034589,2]
[309802688,1704154238778,-157.63543977,0.00034603,2]
[309802690,1704154238788,-83826.5298,0.000348,2]
[309802692,1704154238797,-1000.0,0.000348,2]
[309802695,1704154238807,-3495.9362,0.000348,3]
[309802697,1704154238816,-463.1885,0.000348,2]
[309802699,1704154238826,-71319.90731303,0.000349,2]
[309802701,1704154238835,-151.0,0.00034975,2]
[309802703,1704154238844,-162.93,0.00034997,2]
[309802705,1704154238856,-8324.62489705,0.00035,4]
[309802707,1704154238865,-450.0,0.00035,3]
[309802709,1704154238875,-528.72344337,0.00035,2]
[309802711,1704154238885,-528.72344337,0.00035,2]
[309802713,1704154238895,-528.72344337,0.00035,2]
[309802715,1704154238905,-528.72344337,0.00035,2]
[309802717,1704154238914,-528.72344337,0.00035,2]
[309802719,1704154238924,-528.72344337,0.00035,2]
[309802721,1704154238933,-528.72344337,0.00035,2]
[309802723,1704154238943,-528.72344337,0.00035,2]
[309802725,1704154238952,-528.72344337,0.00035,2]
[309802727,1704154238962,-528.72344337,0.00035,2]
[309802729,1704154238974,-528.72344337,0.00035,2]
[309802732,1704154238983,-528.72344337,0.00035,2]
[309802734,1704154238993,-528.72344337,0.00035,2]
[309802735,1704154239003,-528.72344337,0.00035,2]
[309802738,1704154239013,-528.72344337,0.00035,2]
[309802740,1704154239022,-528.72344337,0.00035,2]
[309802742,1704154239031,-528.72344337,0.00035,2]
[309802744,1704154239041,-528.72344337,0.00035,2]
[309802746,1704154239054,-528.72344337,0.00035,2]
[309802748,1704154239064,-528.72344337,0.00035,2]
[309802750,1704154239073,-303.74,0.00035194,2]
[309802752,1704154239083,-400.0,0.000353,2]
[309802755,1704154239093,-153.84,0.00035524,2]
[309802757,1704154239103,-180.87,0.00035554,2]
[309802759,1704154239112,-166.95,0.00035584,2]
[309802761,1704154239122,-168.7,0.00035584,2]
[309802763,1704154239131,-151.4,0.00035616,2]
[309802765,1704154239142,-596.94,0.00035676,2]
[309802767,1704154239152,-167.82,0.00035766,2]
[309802769,1704154239162,-157.63543977,0.00035902,2]
[309802771,1704154239172,-161.15,0.00035954,2]
[309802773,1704154239182,-47214.21997193,0.00036,4]
[309802800,1704154239434,1594.43306986,0.0001451,2]
[309803003,1704154241190,-532.79523496,0.00036,4]
[309803010,1704154241251,-6029.6622138,0.00036,4]
[309803013,1704154241263,-6606.55426422,0.00036,4]
[309803016,1704154241280,-22911.34752737,0.00036,4]
[309803020,1704154241310,-41.72187498,0.00036,4]
[309803022,1704154241319,-6825.25442966,0.00036,2]
[309803024,1704154241332,-372.03993255,0.00036,2]
[309803026,1704154241345,-414.45844459,0.00036,2]
[309803030,1704154241369,-146280.12004749,0.00036,2]
[309803032,1704154241378,-303.74,0.00036172,2]
[309803034,1704154241388,-153.84,0.00036459,2]
[309803036,1704154241399,-819.13,0.00036513,2]
[309803038,1704154241408,-500.0,0.000367,2]
[309803040,1704154241418,-170.80181031,0.00036701,4]
[309803042,1704154241427,-242.25086059,0.000369,2]
[309803044,1704154241436,-242.25086041,0.000369,2]
[309803046,1704154241445,-242.25086041,0.000369,2]
[309803048,1704154241455,-242.25086041,0.000369,2]
[309803050,1704154241463,-242.25086041,0.000369,2]
[309803052,1704154241472,-242.25086041,0.000369,2]
[309803054,1704154241482,-242.25086041,0.000369,2]
[309803056,1704154241492,-242.25086041,0.000369,2]
[309803058,1704154241501,-242.25086041,0.000369,2]
[309803060,1704154241511,-242.25086041,0.000369,2]
[309803062,1704154241521,-242.25086041,0.000369,2]
[309803064,1704154241530,-242.25086041,0.000369,2]
[309803066,1704154241540,-242.25086041,0.000369,2]
[309803068,1704154241550,-242.25086041,0.000369,2]
[309803070,1704154241559,-242.25086041,0.000369,2]
[309803072,1704154241569,-162.93,0.00036947,2]
[309803074,1704154241579,-1140.92506529,0.00036977,2]
[309803076,1704154241589,-500.0,0.00037,3]
[309803078,1704154241599,-206.0,0.00037092,2]
[309803080,1704154241609,-303.74,0.00037151,2]
[309803082,1704154241619,-157.63543977,0.00037201,2]
[309803084,1704154241629,-150.1,0.000373,2]
[309803086,1704154241638,-242.25086041,0.00037343,2]
[309803088,1704154241649,-153.84,0.00037394,2]
[309803090,1704154241658,-2720.68235057,0.0003778,4]
[309803092,1704154241669,-165.22,0.00037929,2]
[309803094,1704154241679,-596.94,0.0003794,2]
[309803096,1704154241688,-242.25086041,0.0003795,2]
[309803098,1704154241698,-151.40572706,0.00037974,2]
[309803100,1704154241708,-486.56580172,0.00038,4]
[309803102,1704154241719,-1940.24780134,0.00038,4]
[309803104,1704154241728,-13099.0427908,0.00038,2]
[309803106,1704154241737,-1044.28879929,0.00038,2]
[309803108,1704154241747,-4241.57,0.00038,2]
[309803110,1704154241756,-16419.84603774,0.00038,2]
[309803112,1704154241767,-168.0,0.00038,2]
[309803114,1704154241776,-303.74,0.00038129,2]
[309803116,1704154241785,-168.49944388,0.0003826,2]
[309803117,1704154241794,-1064.46797464,0.00038262,10]
[309803119,1704154241803,-153.84,0.00038329,2]
[309803121,1704154241812,-1597.43423757,0.00038356,30]
[309803124,1704154241822,-413.86036328,0.00038358,4]
[309803126,1704154241831,-1601.34707897,0.00038358,4]
[309803128,1704154241841,-418.39942505,0.00038359,4]
[309803130,1704154241850,-153.0,0.000384,2]
[309803131,1704154241859,-297.03399798,0.0003842,30]
[309803134,1704154241868,-157.63543977,0.000385,2]
[309803135,1704154241878,-358.0,0.000385,120]
[309803137,1704154241887,-1812.93,0.00038551,5]
[309803139,1704154241898,-242.25086041,0.00038557,2]
[309803142,1704154241909,-450.0,0.00038572,2]
[309803143,1704154241919,-500.0,0.00038572,2]
[309803145,1704154241928,-500.0,0.00038572,2]
[309803148,1704154241939,-500.0,0.00038572,2]
[309803150,1704154241949,-500.0,0.00038572,2]
[309803152,1704154241958,-500.0,0.00038572,2]
[309803153,1704154241967,-1825.8,0.00038572,5]
[309803155,1704154241978,-200.0,0.00038685,2]
[309803157,1704154241987,-1783.45,0.0003875,5]
[309803160,1704154241996,-500.0,0.00038787,2]
[309803161,1704154242005,-26639.5833676,0.000388,4]
[309803163,1704154242015,-190.43734198,0.00038808,4]
[309803165,1704154242025,-182.84,0.00038836,2]
[309803167,1704154242034,-222.75527306,0.00038846,30]
[309803169,1704154242042,-151.0,0.00038861,2]
[309803171,1704154242051,-250.49088,0.00038861,2]
[309803173,1704154242061,-7500.0,0.0003887,2]
[309803176,1704154242070,-42965.57568141,0.0003889,2]
[309803177,1704154242079,-5681.29689632,0.000389,2]
[309803180,1704154242089,-150.0,0.0003894,120]
[309803182,1704154242099,-70799.07782225,0.0003897,2]
[309803183,1704154242108,-150.71649827,0.00038981,2]
[309803186,1704154242117,-199.17836,0.00038999,5]
[309803187,1704154242127,-16231.77402646,0.00039,2]
[309803190,1704154242136,-972.36322886,0.00039,4]
[309803192,1704154242146,-799.86073926,0.00039,4]
[309803194,1704154242155,-8934.01849266,0.00039,4]
[309803196,1704154242164,-196.32971693,0.00039,4]
[309803198,1704154242173,-1424.97645405,0.00039,2]
[309803199,1704154242182,-24795.6524,0.00039,2]
[309803202,1704154242193,-1090.21058939,0.00039,2]
[309803204,1704154242203,-22331.11722495,0.00039,30]
[309803206,1704154242212,-150.1,0.00039,2]
[309803208,1704154242222,-550.0,0.00039,3]
[309803210,1704154242231,-156.4985551,0.00039,20]
[309803212,1704154242240,-175.64,0.00039,2]
[309803214,1704154242250,-255.6,0.00039,30]
[309803216,1704154242259,-39859.42143937,0.00039006,12]
[309803218,1704154242268,-3485.27982251,0.00039006,10]
[309803220,1704154242277,-1532.98168254,0.00039006,10]
[309803222,1704154242286,-179.047854,0.00039037,12]
[309803224,1704154242295,-303.74,0.00039108,2]
[309803226,1704154242305,-6791.10806158,0.00039108,28]
[309803228,1704154242314,-1000.0,0.00039108,2]
[309803230,1704154242324,-180.87,0.00039109,2]
[309803232,1704154242333,-1000.0,0.00039131,30]
[309803234,1704154242343,-255.6,0.00039137,30]
[309803236,1704154242352,-151.51073857,0.00039152,3]
[309803238,1704154242361,-1140.92506529,0.00039161,2]
[309803240,1704154242371,-176.23452681,0.00039162,2]
[309803242,1704154242380,-5742.32770847,0.00039162,12]
[309803244,1704154242390,-242.25086041,0.00039164,2]
[309803246,1704154242400,-1129.66203942,0.00039174,3]
[309803248,1704154242410,-151.4,0.00039178,2]
[309803250,1704154242419,-150.0,0.00039184,2]
[309803252,1704154242429,-185.92,0.000392,2]
[309803254,1704154242439,-1976.72351471,0.0003922,30]
[309803256,1704154242448,-150.0,0.00039244,2]
[309803258,1704154242458,-7007.21823283,0.0003925,10]
[309803260,1704154242467,-89710.6512922,0.0003925,4]
[309803262,1704154242477,-370.02,0.00039252,10]
[309803264,1704154242487,-150.0,0.00039258,2]
[309803266,1704154242496,-842.83,0.0003926,2]
[309803268,1704154242505,-272.99086211,0.00039262,90]
[309803270,1704154242515,-6206.73680819,0.00039262,120]
[309803272,1704154242524,-26567.999998,0.00039262,120]
[309803274,1704154242533,-200.33745739,0.00039262,120]
[309803276,1704154242543,-314351.67117907,0.00039262,120]
[309803278,1704154242552,-1238.89521301,0.00039262,120]
[309803281,1704154242561,-4507.0082667,0.00039262,4]
[309803284,1704154242570,-1206.85063702,0.00039262,4]
[309803287,1704154242580,-4388.10687188,0.00039262,4]
[309803290,1704154242590,-405.04796106,0.00039262,120]
[309803293,1704154242599,-1211.14594449,0.00039262,30]
[309803296,1704154242608,-303.736763,0.00039262,30]
[309803298,1704154242618,-150.0,0.00039262,2]
[309803301,1704154242627,-150.0,0.00039262,7]
[309803303,1704154242637,-153.84,0.00039264,2]
[309803305,1704154242646,-161.15,0.00039266,2]
[309803306,1704154242655,-255.6,0.00039274,30]
[309803308,1704154242664,-150.0,0.00039292,2]
[309803310,1704154242673,-1000.0,0.000393,29]
[309803311,1704154242682,-2604.420777,0.000393,29]
[309803312,1704154242693,-192.30351148,0.00039301,2]
[309803314,1704154242702,-150.0,0.00039302,2]
[309803316,1704154242711,-150.0,0.00039308,2]
[309803318,1704154242721,-150.0,0.00039309,2]
[309803321,1704154242732,-150.0,0.00039312,2]
[309803323,1704154242741,-150.0,0.00039316,2]
[309803325,1704154242750,-150.0,0.00039327,2]
[309803327,1704154242759,-150.0,0.00039328,2]
[309803330,1704154242768,-150.0,0.00039337,2]
[309803332,1704154242777,-21021.6546985,0.00039339,10]
[309803334,1704154242786,-1079.70550939,0.00039342,2]
[309803337,1704154242796,-150.0,0.0003936,2]
[309803339,1704154242805,-7007.21823283,0.00039368,10]
[309803340,1704154242814,-150.0,0.00039373,2]
[309803341,1704154242823,-14014.4364657,0.00039378,10]
[309803342,1704154242832,-500.0,0.00039378,2]
[309803343,1704154242944,-5000.0,0.00039387,3]
[309803344,1704154242954,-166.50987138,0.00039387,4]
[309803345,1704154242962,-18223.08053151,0.00039388,2]
[309803346,1704154242971,-411.78927016,0.00039388,4]
[309803347,1704154242980,-255.6,0.00039411,30]
[309803348,1704154242990,-200.0,0.00039414,2]
[309803349,1704154242999,-305.377611,0.00039414,20]
[309803350,1704154243008,-150.0,0.00039416,2]
[309803351,1704154243018,-150.0,0.0003942,2]
[309803352,1704154243027,-150.0,0.00039426,2]
[309803353,1704154243037,-150.0,0.00039429,2]
[309803354,1704154243047,-457.07,0.0003943,2]
[309803355,1704154243056,-500.0,0.00039434,2]
[309803356,1704154243066,-150.0,0.00039442,2]
[309803357,1704154243075,-150.0,0.00039445,2]
[309803358,1704154243084,-150.0,0.00039448,2]
[309803359,1704154243093,-150.0,0.00039452,2]
[309803360,1704154243102,-150.0,0.00039464,2]
[309803361,1704154243110,-150.0,0.00039474,2]
[309803362,1704154243119,-7007.21823283,0.00039479,10]